[Event "Titled Tuesday Blitz February 07 Early 2023"]
[White "Bolanos, Fernando"]
[Black "Cramling Bellon, Anna"]
[WhiteFideId "3304094"]
[BlackFideId "32009232"]
[WhiteElo "2248"]
[BlackElo "2043"]
[Result "0-1"]
[Round "04"]
[TimeControl "180+2"]
[Date "2023.02.07"]
[WhiteClock "0:00:02"]
[BlackClock "0:00:05"]

1. e3 {[%clk 0:03:00]}  c5 {[%clk 0:02:48]} 2. Nf3 {[%clk 0:02:59]}  d5 {[%clk 0:02:48]} 3. d4 {[%clk 0:02:58]}  cxd4 {[%clk 0:02:46]} 4. exd4 {[%clk 0:02:55]}  Nc6 {[%clk 0:02:46]} 5. Bd3 {[%clk 0:02:42]}  Bg4 {[%clk 0:02:42]} 6. c3 {[%clk 0:02:39]}  e6 {[%clk 0:02:43]} 7. Nbd2 {[%clk 0:02:31]}  Nf6 {[%clk 0:02:42]} 8. O-O {[%clk 0:02:29]}  Bd6 {[%clk 0:02:41]} 9. h3 {[%clk 0:02:29]}  Bh5 {[%clk 0:02:40]} 10. Re1 {[%clk 0:02:30]}  O-O {[%clk 0:02:40]} 11. Nf1 {[%clk 0:02:30]}  h6 {[%clk 0:02:13]} 12. Ng3 {[%clk 0:02:16]}  Bg6 {[%clk 0:01:54]} 13. Bxg6 {[%clk 0:02:08]}  fxg6 {[%clk 0:01:55]} 14. Rxe6 {[%clk 0:02:06]}  Qd7 {[%clk 0:01:41]} 15. Re1 {[%clk 0:02:00]}  Bxg3 {[%clk 0:01:37]} 16. fxg3 {[%clk 0:02:00]}  Ne4 {[%clk 0:01:38]} 17. Bf4 {[%clk 0:01:50]}  g5 {[%clk 0:01:37]} 18. Be5 {[%clk 0:01:41]}  g4 {[%clk 0:01:22]} 19. hxg4 {[%clk 0:01:19]}  Qxg4 {[%clk 0:01:23]} 20. Nd2 {[%clk 0:01:03]}  Nxe5 {[%clk 0:01:11]} 21. Nxe4 {[%clk 0:00:57]}  Nf3+ {[%clk 0:00:37]} 22. gxf3 {[%clk 0:00:13]}  Rxf3 {[%clk 0:00:38]} 23. Qb3 {[%clk 0:00:09]}  Rf5 {[%clk 0:00:10]} 24. Rf1 {[%clk 0:00:06]}  Qxe4 {[%clk 0:00:09]} 25. Rxf5 {[%clk 0:00:06]}  Qxf5 {[%clk 0:00:10]} 26. Rf1 {[%clk 0:00:05]}  Qe4 {[%clk 0:00:11]} 27. Qxb7 {[%clk 0:00:03]}  Re8 {[%clk 0:00:10]} 28. Qf7+ {[%clk 0:00:03]}  Kh8 {[%clk 0:00:09]} 29. Qf3 {[%clk 0:00:04]}  Qg6 {[%clk 0:00:06]} 30. Kg2 {[%clk 0:00:03]}  Re4 {[%clk 0:00:06]} 31. Rf2 {[%clk 0:00:03]}  Rg4 {[%clk 0:00:06]} 32. b4 {[%clk 0:00:02]}  h5 {[%clk 0:00:06]} 33. Qf5 {[%clk 0:00:01]}  Rxg3+ {[%clk 0:00:06]} 34. Kh2 {[%clk 0:00:01]}  Rg2+ {[%clk 0:00:05]} 35. Kh1 {[%clk 0:00:01]}  Rg1+ {[%clk 0:00:05]} 36. Kh2 {[%clk 0:00:02]}  Qg3# {[%clk 0:00:05]} 0-1


[Site "https://www.chess.com"]

[Event "Titled Tuesday Blitz February 07 Early 2023"]
[White "Levine, David"]
[Black "Zaichenko, Daria"]
[WhiteFideId "2011611"]
[BlackFideId "4197453"]
[WhiteElo "2040"]
[BlackElo "2104"]
[Result "1/2-1/2"]
[Round "04"]
[TimeControl "180+2"]
[Date "2023.02.07"]
[WhiteClock "0:00:12"]
[BlackClock "0:00:48"]

1. d4 {[%clk 0:02:58]}  d5 {[%clk 0:03:00]} 2. c4 {[%clk 0:02:58]}  e6 {[%clk 0:02:59]} 3. g3 {[%clk 0:02:58]}  Nf6 {[%clk 0:02:55]} 4. Bg2 {[%clk 0:02:58]}  Be7 {[%clk 0:02:55]} 5. Nf3 {[%clk 0:02:58]}  O-O {[%clk 0:02:55]} 6. O-O {[%clk 0:02:57]}  dxc4 {[%clk 0:02:56]} 7. Na3 {[%clk 0:02:53]}  Bxa3 {[%clk 0:02:51]} 8. bxa3 {[%clk 0:02:53]}  c6 {[%clk 0:02:24]} 9. Ne5 {[%clk 0:02:43]}  b5 {[%clk 0:02:15]} 10. Nxc6 {[%clk 0:02:38]}  Nxc6 {[%clk 0:02:15]} 11. Bxc6 {[%clk 0:02:38]}  Rb8 {[%clk 0:02:15]} 12. Bg2 {[%clk 0:02:29]}  a5 {[%clk 0:02:07]} 13. Bf4 {[%clk 0:02:23]}  Rb6 {[%clk 0:02:05]} 14. Rc1 {[%clk 0:02:13]}  Nd5 {[%clk 0:02:05]} 15. a4 {[%clk 0:02:01]}  Nxf4 {[%clk 0:02:00]} 16. gxf4 {[%clk 0:02:01]}  Bd7 {[%clk 0:01:57]} 17. axb5 {[%clk 0:01:57]}  Bxb5 {[%clk 0:01:56]} 18. e3 {[%clk 0:01:52]}  Qd7 {[%clk 0:01:53]} 19. Re1 {[%clk 0:01:45]}  Rc8 {[%clk 0:01:50]} 20. Rc3 {[%clk 0:01:42]}  Ba4 {[%clk 0:01:47]} 21. Qc1 {[%clk 0:01:35]}  Qb5 {[%clk 0:01:35]} 22. Qa3 {[%clk 0:01:30]}  Qb4 {[%clk 0:01:32]} 23. Rec1 {[%clk 0:01:29]}  Bb5 {[%clk 0:01:31]} 24. Bf1 {[%clk 0:01:23]}  Rbc6 {[%clk 0:01:30]} 25. R1c2 {[%clk 0:01:13]}  Ba4 {[%clk 0:01:01]} 26. Rc1 {[%clk 0:00:48]}  Bb5 {[%clk 0:00:49]} 27. R1c2 {[%clk 0:00:13]}  Ba4 {[%clk 0:00:48]} 28. Rc1 {[%clk 0:00:12]}  Bb5 {[%clk 0:00:48]} 1/2-1/2


[Site "https://www.chess.com"]

[Event "Titled Tuesday Blitz February 07 Early 2023"]
[White "So, Wesley"]
[Black "Kaasen, Tor Fredrik"]
[WhiteFideId "5202213"]
[BlackFideId "1516647"]
[WhiteElo "2760"]
[BlackElo "2480"]
[Result "1-0"]
[Round "05"]
[TimeControl "180+2"]
[Date "2023.02.07"]
[WhiteClock "0:00:19"]
[BlackClock "0:00:03"]

1. d4 {[%clk 0:03:00]}  Nf6 {[%clk 0:02:59]} 2. c4 {[%clk 0:03:00]}  e6 {[%clk 0:03:00]} 3. Bf4 {[%clk 0:02:59]}  d5 {[%clk 0:02:58]} 4. cxd5 {[%clk 0:03:00]}  exd5 {[%clk 0:02:58]} 5. Nc3 {[%clk 0:03:00]}  c6 {[%clk 0:02:58]} 6. e3 {[%clk 0:03:00]}  Bf5 {[%clk 0:02:58]} 7. Nge2 {[%clk 0:02:49]}  Bd6 {[%clk 0:02:55]} 8. Ng3 {[%clk 0:02:41]}  Bg6 {[%clk 0:02:53]} 9. Bxd6 {[%clk 0:02:37]}  Qxd6 {[%clk 0:02:54]} 10. h4 {[%clk 0:02:37]}  h5 {[%clk 0:02:44]} 11. Be2 {[%clk 0:02:32]}  Nbd7 {[%clk 0:02:42]} 12. Bf3 {[%clk 0:02:32]}  Nb6 {[%clk 0:02:30]} 13. O-O {[%clk 0:02:32]}  Qe7 {[%clk 0:02:24]} 14. Nce2 {[%clk 0:02:24]}  Ne4 {[%clk 0:02:15]} 15. Bxe4 {[%clk 0:02:19]}  Bxe4 {[%clk 0:02:16]} 16. Nxe4 {[%clk 0:02:13]}  Qxe4 {[%clk 0:02:13]} 17. Nf4 {[%clk 0:02:05]}  Qe7 {[%clk 0:02:08]} 18. g3 {[%clk 0:02:00]}  g6 {[%clk 0:02:08]} 19. a4 {[%clk 0:01:55]}  Nc4 {[%clk 0:02:07]} 20. Qc2 {[%clk 0:01:42]}  O-O {[%clk 0:02:04]} 21. b3 {[%clk 0:01:34]}  Nd6 {[%clk 0:02:04]} 22. b4 {[%clk 0:01:29]}  a6 {[%clk 0:02:01]} 23. Qc5 {[%clk 0:01:24]}  Rfe8 {[%clk 0:01:58]} 24. Rfb1 {[%clk 0:01:20]}  Kg7 {[%clk 0:01:52]} 25. Rc1 {[%clk 0:01:14]}  Rad8 {[%clk 0:01:45]} 26. Rab1 {[%clk 0:01:11]}  Qf6 {[%clk 0:01:41]} 27. Qc2 {[%clk 0:01:01]}  Rh8 {[%clk 0:01:39]} 28. Qe2 {[%clk 0:00:59]}  Qf5 {[%clk 0:01:33]} 29. Kg2 {[%clk 0:00:58]}  Rhe8 {[%clk 0:01:15]} 30. Qf3 {[%clk 0:00:56]}  Re7 {[%clk 0:01:10]} 31. Rb3 {[%clk 0:00:54]}  Rde8 {[%clk 0:01:04]} 32. Nd3 {[%clk 0:00:47]}  Qc8 {[%clk 0:00:46]} 33. b5 {[%clk 0:00:47]}  axb5 {[%clk 0:00:40]} 34. axb5 {[%clk 0:00:47]}  Ne4 {[%clk 0:00:40]} 35. Rc2 {[%clk 0:00:37]}  Rc7 {[%clk 0:00:32]} 36. bxc6 {[%clk 0:00:37]}  Rxc6 {[%clk 0:00:28]} 37. Rcb2 {[%clk 0:00:36]}  Rf6 {[%clk 0:00:24]} 38. Nf4 {[%clk 0:00:33]}  b6 {[%clk 0:00:18]} 39. Rxb6 {[%clk 0:00:32]}  Rxb6 {[%clk 0:00:15]} 40. Rxb6 {[%clk 0:00:33]}  Rd8 {[%clk 0:00:08]} 41. Rb5 {[%clk 0:00:28]}  Qc6 {[%clk 0:00:07]} 42. Ra5 {[%clk 0:00:26]}  Nf6 {[%clk 0:00:07]} 43. Rc5 {[%clk 0:00:25]}  Qd6 {[%clk 0:00:06]} 44. Nd3 {[%clk 0:00:25]}  Ng4 {[%clk 0:00:05]} 45. Qf4 {[%clk 0:00:24]}  Qe7 {[%clk 0:00:04]} 46. Rc7 {[%clk 0:00:24]}  Rd7 {[%clk 0:00:03]} 47. Rxd7 {[%clk 0:00:23]}  Qxd7 {[%clk 0:00:04]} 48. Qg5 {[%clk 0:00:19]}  f6 {[%clk 0:00:03]} 49. Qf4 {[%clk 0:00:19]} 1-0


[Site "https://www.chess.com"]

[Event "Titled Tuesday Blitz February 07 Early 2023"]
[White "Zierk, Steven"]
[Black "Perez Ponsa, Federico"]
[WhiteFideId "2034255"]
[BlackFideId "117927"]
[WhiteElo "2488"]
[BlackElo "2532"]
[Result "1-0"]
[Round "05"]
[TimeControl "180+2"]
[Date "2023.02.07"]
[WhiteClock "0:00:25"]
[BlackClock "0:00:09"]

1. e4 {[%clk 0:03:00]}  c5 {[%clk 0:03:00]} 2. Nf3 {[%clk 0:03:00]}  d6 {[%clk 0:03:00]} 3. d4 {[%clk 0:03:00]}  cxd4 {[%clk 0:03:01]} 4. Nxd4 {[%clk 0:03:01]}  Nf6 {[%clk 0:03:02]} 5. Nc3 {[%clk 0:03:01]}  a6 {[%clk 0:03:02]} 6. h3 {[%clk 0:03:02]}  e6 {[%clk 0:03:03]} 7. g4 {[%clk 0:03:01]}  h6 {[%clk 0:03:04]} 8. Bg2 {[%clk 0:03:00]}  Be7 {[%clk 0:03:03]} 9. Be3 {[%clk 0:03:00]}  Nc6 {[%clk 0:03:04]} 10. Qe2 {[%clk 0:02:43]}  Nxd4 {[%clk 0:02:57]} 11. Bxd4 {[%clk 0:02:43]}  e5 {[%clk 0:02:58]} 12. Be3 {[%clk 0:02:42]}  b5 {[%clk 0:02:59]} 13. O-O-O {[%clk 0:02:36]}  b4 {[%clk 0:02:58]} 14. Nd5 {[%clk 0:02:35]}  Nxd5 {[%clk 0:02:59]} 15. exd5 {[%clk 0:02:35]}  O-O {[%clk 0:02:47]} 16. Be4 {[%clk 0:02:28]}  a5 {[%clk 0:02:28]} 17. Rdg1 {[%clk 0:02:22]}  Bh4 {[%clk 0:02:18]} 18. g5 {[%clk 0:02:02]}  hxg5 {[%clk 0:02:11]} 19. Qh5 {[%clk 0:02:00]}  f5 {[%clk 0:02:08]} 20. Bxg5 {[%clk 0:02:00]}  Bxg5+ {[%clk 0:02:04]} 21. Rxg5 {[%clk 0:02:01]}  Ra7 {[%clk 0:01:28]} 22. Bxf5 {[%clk 0:01:55]}  Bxf5 {[%clk 0:01:08]} 23. Rxf5 {[%clk 0:01:56]}  Rxf5 {[%clk 0:01:09]} 24. Qxf5 {[%clk 0:01:57]}  Rf7 {[%clk 0:01:09]} 25. Qe6 {[%clk 0:01:55]}  Qf6 {[%clk 0:01:06]} 26. Rd1 {[%clk 0:01:39]}  Kh7 {[%clk 0:00:57]} 27. b3 {[%clk 0:01:36]}  Qf4+ {[%clk 0:00:50]} 28. Kb2 {[%clk 0:01:22]}  Rf6 {[%clk 0:00:51]} 29. Qe7 {[%clk 0:01:05]}  Qxf2 {[%clk 0:00:47]} 30. Qc7 {[%clk 0:01:04]}  Qe3 {[%clk 0:00:25]} 31. a4 {[%clk 0:00:43]}  e4 {[%clk 0:00:21]} 32. Qc4 {[%clk 0:00:39]}  Rf5 {[%clk 0:00:14]} 33. Qd4 {[%clk 0:00:34]}  Qxd4+ {[%clk 0:00:11]} 34. Rxd4 {[%clk 0:00:35]}  Re5 {[%clk 0:00:12]} 35. Kc1 {[%clk 0:00:35]}  Kh6 {[%clk 0:00:11]} 36. Kd2 {[%clk 0:00:35]}  Kh5 {[%clk 0:00:12]} 37. Ke3 {[%clk 0:00:32]}  Kh4 {[%clk 0:00:12]} 38. Rxe4+ {[%clk 0:00:20]}  Rxe4+ {[%clk 0:00:06]} 39. Kxe4 {[%clk 0:00:21]}  Kxh3 {[%clk 0:00:06]} 40. Kf5 {[%clk 0:00:21]}  Kh4 {[%clk 0:00:04]} 41. Ke6 {[%clk 0:00:20]}  g5 {[%clk 0:00:04]} 42. Kxd6 {[%clk 0:00:20]}  g4 {[%clk 0:00:05]} 43. Kc6 {[%clk 0:00:20]}  g3 {[%clk 0:00:06]} 44. d6 {[%clk 0:00:21]}  g2 {[%clk 0:00:06]} 45. d7 {[%clk 0:00:22]}  g1=Q {[%clk 0:00:07]} 46. d8=Q+ {[%clk 0:00:23]}  Kh3 {[%clk 0:00:07]} 47. Qh8+ {[%clk 0:00:23]}  Kg2 {[%clk 0:00:07]} 48. Qg8+ {[%clk 0:00:24]}  Kf1 {[%clk 0:00:08]} 49. Qxg1+ {[%clk 0:00:24]}  Kxg1 {[%clk 0:00:09]} 50. Kb5 {[%clk 0:00:25]} 1-0


[Site "https://www.chess.com"]

[Event "Titled Tuesday Blitz February 07 Early 2023"]
[White "Sjugirov, Sanan"]
[Black "Rakhmanov, Aleksandr"]
[WhiteFideId "4189302"]
[BlackFideId "4173708"]
[WhiteElo "2712"]
[BlackElo "2632"]
[Result "0-1"]
[Round "05"]
[TimeControl "180+2"]
[Date "2023.02.07"]
[WhiteClock "0:00:11"]
[BlackClock "0:00:12"]

1. d4 {[%clk 0:03:00]}  Nf6 {[%clk 0:02:58]} 2. c4 {[%clk 0:03:00]}  d6 {[%clk 0:02:59]} 3. Nf3 {[%clk 0:02:51]}  g6 {[%clk 0:02:59]} 4. g3 {[%clk 0:02:50]}  Bg7 {[%clk 0:02:58]} 5. Bg2 {[%clk 0:02:50]}  O-O {[%clk 0:02:58]} 6. Nc3 {[%clk 0:02:48]}  Bf5 {[%clk 0:02:57]} 7. Qb3 {[%clk 0:02:38]}  Bc8 {[%clk 0:02:20]} 8. O-O {[%clk 0:02:35]}  Nc6 {[%clk 0:02:18]} 9. Rd1 {[%clk 0:01:58]}  Rb8 {[%clk 0:02:11]} 10. Qa3 {[%clk 0:01:43]}  a6 {[%clk 0:02:10]} 11. d5 {[%clk 0:01:41]}  Na7 {[%clk 0:01:58]} 12. Be3 {[%clk 0:01:34]}  b6 {[%clk 0:01:49]} 13. h3 {[%clk 0:01:31]}  c5 {[%clk 0:01:32]} 14. dxc6 {[%clk 0:01:23]}  Nxc6 {[%clk 0:01:32]} 15. Rac1 {[%clk 0:01:21]}  a5 {[%clk 0:01:16]} 16. Qb3 {[%clk 0:01:14]}  Be6 {[%clk 0:01:08]} 17. Nd5 {[%clk 0:01:10]}  Nd7 {[%clk 0:00:56]} 18. Qb5 {[%clk 0:01:00]}  Na7 {[%clk 0:00:49]} 19. Qa4 {[%clk 0:00:55]}  Nc5 {[%clk 0:00:45]} 20. Qa3 {[%clk 0:00:48]}  Nc6 {[%clk 0:00:40]} 21. Nd4 {[%clk 0:00:43]}  Nxd4 {[%clk 0:00:39]} 22. Bxd4 {[%clk 0:00:44]}  Bxd5 {[%clk 0:00:32]} 23. Bxd5 {[%clk 0:00:36]}  Qd7 {[%clk 0:00:29]} 24. Bg2 {[%clk 0:00:26]}  Rfc8 {[%clk 0:00:25]} 25. Bxg7 {[%clk 0:00:22]}  Kxg7 {[%clk 0:00:26]} 26. Qe3 {[%clk 0:00:21]}  Qe6 {[%clk 0:00:23]} 27. Qd2 {[%clk 0:00:19]}  Qf6 {[%clk 0:00:21]} 28. b3 {[%clk 0:00:19]}  h5 {[%clk 0:00:19]} 29. h4 {[%clk 0:00:19]}  Qe5 {[%clk 0:00:20]} 30. e3 {[%clk 0:00:19]}  Rc7 {[%clk 0:00:19]} 31. Qe2 {[%clk 0:00:20]}  Ra7 {[%clk 0:00:19]} 32. Rd5 {[%clk 0:00:19]}  Qf6 {[%clk 0:00:20]} 33. Rcd1 {[%clk 0:00:20]}  Rc7 {[%clk 0:00:19]} 34. R5d4 {[%clk 0:00:19]}  Kg8 {[%clk 0:00:18]} 35. Bh3 {[%clk 0:00:19]}  Rf8 {[%clk 0:00:18]} 36. Qc2 {[%clk 0:00:17]}  Ra7 {[%clk 0:00:15]} 37. Rf4 {[%clk 0:00:16]}  Qg7 {[%clk 0:00:14]} 38. a3 {[%clk 0:00:16]}  Nd7 {[%clk 0:00:14]} 39. Bxd7 {[%clk 0:00:13]}  Rxd7 {[%clk 0:00:15]} 40. Rfd4 {[%clk 0:00:13]}  Rc7 {[%clk 0:00:15]} 41. Rd5 {[%clk 0:00:13]}  Rfc8 {[%clk 0:00:15]} 42. Rb5 {[%clk 0:00:12]}  Rc6 {[%clk 0:00:15]} 43. a4 {[%clk 0:00:12]}  Qf6 {[%clk 0:00:15]} 44. Qe4 {[%clk 0:00:12]}  R8c7 {[%clk 0:00:15]} 45. Kg2 {[%clk 0:00:12]}  Kg7 {[%clk 0:00:16]} 46. Rdd5 {[%clk 0:00:12]}  Qe6 {[%clk 0:00:16]} 47. Qf3 {[%clk 0:00:11]}  Qf6 {[%clk 0:00:16]} 48. Qe2 {[%clk 0:00:12]}  Qe6 {[%clk 0:00:16]} 49. Rd4 {[%clk 0:00:12]}  Qf6 {[%clk 0:00:17]} 50. Rf4 {[%clk 0:00:12]}  Qe6 {[%clk 0:00:17]} 51. g4 {[%clk 0:00:12]}  hxg4 {[%clk 0:00:17]} 52. Rxg4 {[%clk 0:00:13]}  Rc5 {[%clk 0:00:14]} 53. Rxb6 {[%clk 0:00:11]}  Rh5 {[%clk 0:00:14]} 54. Rb5 {[%clk 0:00:10]}  Rcc5 {[%clk 0:00:15]} 55. Rxc5 {[%clk 0:00:08]}  dxc5 {[%clk 0:00:15]} 56. Qf3 {[%clk 0:00:08]}  Rf5 {[%clk 0:00:15]} 57. Rf4 {[%clk 0:00:08]}  Rh5 {[%clk 0:00:13]} 58. Qe4 {[%clk 0:00:08]}  Qxe4+ {[%clk 0:00:12]} 59. Rxe4 {[%clk 0:00:08]}  e5 {[%clk 0:00:12]} 60. Rg4 {[%clk 0:00:08]}  f5 {[%clk 0:00:11]} 61. Rg3 {[%clk 0:00:07]}  Rxh4 {[%clk 0:00:12]} 62. Kg1 {[%clk 0:00:06]}  Kf6 {[%clk 0:00:12]} 63. Rg2 {[%clk 0:00:06]}  Rh8 {[%clk 0:00:12]} 64. Kf1 {[%clk 0:00:06]}  Rb8 {[%clk 0:00:12]} 65. Rh2 {[%clk 0:00:06]}  Kg7 {[%clk 0:00:11]} 66. Ke2 {[%clk 0:00:03]}  Rxb3 {[%clk 0:00:12]} 67. Rh1 {[%clk 0:00:04]}  Rb4 {[%clk 0:00:12]} 68. Rd1 {[%clk 0:00:04]}  Rxc4 {[%clk 0:00:12]} 69. Rd7+ {[%clk 0:00:05]}  Kf6 {[%clk 0:00:11]} 70. Rd6+ {[%clk 0:00:05]}  Kg5 {[%clk 0:00:12]} 71. Rd5 {[%clk 0:00:04]}  e4 {[%clk 0:00:12]} 72. Re5 {[%clk 0:00:04]}  Kf6 {[%clk 0:00:11]} 73. Rd5 {[%clk 0:00:05]}  Ke6 {[%clk 0:00:12]} 74. Rd8 {[%clk 0:00:05]}  Rxa4 {[%clk 0:00:12]} 75. Rg8 {[%clk 0:00:06]}  Kf6 {[%clk 0:00:13]} 76. Rc8 {[%clk 0:00:07]}  c4 {[%clk 0:00:12]} 77. Rc6+ {[%clk 0:00:08]}  Kg5 {[%clk 0:00:11]} 78. Ra6 {[%clk 0:00:09]}  Ra2+ {[%clk 0:00:11]} 79. Kf1 {[%clk 0:00:09]}  c3 {[%clk 0:00:12]} 80. Rc6 {[%clk 0:00:10]}  c2 {[%clk 0:00:12]} 81. Kg2 {[%clk 0:00:11]}  a4 {[%clk 0:00:12]} 82. Kg3 {[%clk 0:00:12]}  a3 {[%clk 0:00:12]} 83. Rc5 {[%clk 0:00:11]}  Rb2 {[%clk 0:00:12]} 0-1


[Site "https://www.chess.com"]

[Event "Titled Tuesday Blitz February 07 Early 2023"]
[White "Terry, Renato"]
[Black "Guseinov, Gadir"]
[WhiteFideId "3803457"]
[BlackFideId "13401378"]
[WhiteElo "2520"]
[BlackElo "2661"]
[Result "0-1"]
[Round "05"]
[TimeControl "180+2"]
[Date "2023.02.07"]
[WhiteClock "0:00:05"]
[BlackClock "0:00:12"]

1. d4 {[%clk 0:03:00]}  Nf6 {[%clk 0:02:57]} 2. Nf3 {[%clk 0:03:01]}  g6 {[%clk 0:02:56]} 3. Bg5 {[%clk 0:03:01]}  Bg7 {[%clk 0:02:56]} 4. c3 {[%clk 0:03:01]}  O-O {[%clk 0:02:55]} 5. Nbd2 {[%clk 0:03:02]}  d6 {[%clk 0:02:55]} 6. e4 {[%clk 0:03:02]}  Nc6 {[%clk 0:02:53]} 7. Be2 {[%clk 0:02:58]}  e5 {[%clk 0:02:52]} 8. dxe5 {[%clk 0:02:58]}  Nxe5 {[%clk 0:02:48]} 9. Nxe5 {[%clk 0:02:57]}  dxe5 {[%clk 0:02:48]} 10. O-O {[%clk 0:02:56]}  b6 {[%clk 0:02:33]} 11. Qc2 {[%clk 0:02:50]}  Bb7 {[%clk 0:02:32]} 12. Rad1 {[%clk 0:02:44]}  Qe7 {[%clk 0:02:32]} 13. b4 {[%clk 0:02:28]}  a5 {[%clk 0:02:25]} 14. a3 {[%clk 0:02:28]}  axb4 {[%clk 0:02:24]} 15. axb4 {[%clk 0:02:29]}  h6 {[%clk 0:02:14]} 16. Be3 {[%clk 0:02:26]}  Rfd8 {[%clk 0:02:12]} 17. Rfe1 {[%clk 0:02:22]}  Qe6 {[%clk 0:02:11]} 18. Bc4 {[%clk 0:02:00]}  Rxd2 {[%clk 0:01:56]} 19. Rxd2 {[%clk 0:01:59]}  Qxc4 {[%clk 0:01:55]} 20. f3 {[%clk 0:02:00]}  Kh7 {[%clk 0:01:41]} 21. Qd3 {[%clk 0:01:38]}  Qe6 {[%clk 0:01:27]} 22. Red1 {[%clk 0:01:38]}  Bc6 {[%clk 0:01:21]} 23. Qb1 {[%clk 0:01:28]}  Ne8 {[%clk 0:01:17]} 24. b5 {[%clk 0:01:21]}  Bb7 {[%clk 0:01:16]} 25. Rd7 {[%clk 0:01:21]}  Rc8 {[%clk 0:01:08]} 26. Rd8 {[%clk 0:01:08]}  Nd6 {[%clk 0:01:01]} 27. Rxc8 {[%clk 0:01:08]}  Bxc8 {[%clk 0:01:02]} 28. Qb4 {[%clk 0:01:09]}  Bf8 {[%clk 0:00:59]} 29. Bf2 {[%clk 0:01:03]}  Be7 {[%clk 0:00:57]} 30. Qa4 {[%clk 0:01:03]}  Bd7 {[%clk 0:00:57]} 31. Rb1 {[%clk 0:01:02]}  Qc4 {[%clk 0:00:49]} 32. Qxc4 {[%clk 0:00:49]}  Nxc4 {[%clk 0:00:50]} 33. h3 {[%clk 0:00:39]}  Bd6 {[%clk 0:00:50]} 34. Rb3 {[%clk 0:00:37]}  f5 {[%clk 0:00:50]} 35. exf5 {[%clk 0:00:36]}  gxf5 {[%clk 0:00:51]} 36. Rb1 {[%clk 0:00:36]}  Kg6 {[%clk 0:00:51]} 37. g4 {[%clk 0:00:33]}  f4 {[%clk 0:00:44]} 38. Kg2 {[%clk 0:00:28]}  h5 {[%clk 0:00:36]} 39. gxh5+ {[%clk 0:00:28]}  Kxh5 {[%clk 0:00:36]} 40. h4 {[%clk 0:00:22]}  Be6 {[%clk 0:00:29]} 41. Ra1 {[%clk 0:00:17]}  Bd5 {[%clk 0:00:27]} 42. Rd1 {[%clk 0:00:17]}  Bb7 {[%clk 0:00:27]} 43. Bg1 {[%clk 0:00:15]}  e4 {[%clk 0:00:25]} 44. fxe4 {[%clk 0:00:15]}  Bxe4+ {[%clk 0:00:26]} 45. Kh2 {[%clk 0:00:16]}  Kg4 {[%clk 0:00:26]} 46. Bf2 {[%clk 0:00:16]}  Ne5 {[%clk 0:00:18]} 47. Rg1+ {[%clk 0:00:14]}  Kf3 {[%clk 0:00:19]} 48. Bd4 {[%clk 0:00:14]}  Ke2 {[%clk 0:00:19]} 49. Ra1 {[%clk 0:00:07]}  Nf3+ {[%clk 0:00:18]} 50. Kh3 {[%clk 0:00:08]}  Nxd4 {[%clk 0:00:18]} 51. cxd4 {[%clk 0:00:08]}  Bf5+ {[%clk 0:00:18]} 52. Kg2 {[%clk 0:00:07]}  f3+ {[%clk 0:00:18]} 53. Kh1 {[%clk 0:00:07]}  f2 {[%clk 0:00:18]} 54. Ra2+ {[%clk 0:00:07]}  Kf3 {[%clk 0:00:18]} 55. Ra3+ {[%clk 0:00:08]}  Bd3 {[%clk 0:00:12]} 56. Rxd3+ {[%clk 0:00:04]}  Ke2 {[%clk 0:00:12]} 57. Kg2 {[%clk 0:00:05]}  f1=Q# {[%clk 0:00:12]} 0-1


[Site "https://www.chess.com"]

[Event "Titled Tuesday Blitz February 07 Early 2023"]
[White "Postny, Evgeny"]
[Black "Keymer, Vincent"]
[WhiteFideId "2804344"]
[BlackFideId "12940690"]
[WhiteElo "2549"]
[BlackElo "2700"]
[Result "0-1"]
[Round "05"]
[TimeControl "180+2"]
[Date "2023.02.07"]
[WhiteClock "0:00:03"]
[BlackClock "0:00:12"]

1. Nf3 {[%clk 0:03:00]}  d5 {[%clk 0:02:59]} 2. c4 {[%clk 0:03:01]}  d4 {[%clk 0:03:00]} 3. g3 {[%clk 0:03:01]}  Nc6 {[%clk 0:02:58]} 4. Bg2 {[%clk 0:03:02]}  e6 {[%clk 0:02:53]} 5. d3 {[%clk 0:03:01]}  Nf6 {[%clk 0:02:53]} 6. O-O {[%clk 0:03:01]}  Bc5 {[%clk 0:02:53]} 7. Bg5 {[%clk 0:02:58]}  Be7 {[%clk 0:02:52]} 8. Na3 {[%clk 0:02:57]}  O-O {[%clk 0:02:48]} 9. Nc2 {[%clk 0:02:57]}  a5 {[%clk 0:02:49]} 10. b3 {[%clk 0:02:50]}  e5 {[%clk 0:02:40]} 11. Nd2 {[%clk 0:02:46]}  Bg4 {[%clk 0:02:24]} 12. a3 {[%clk 0:02:42]}  Nd7 {[%clk 0:02:20]} 13. Bxe7 {[%clk 0:02:41]}  Qxe7 {[%clk 0:02:21]} 14. Re1 {[%clk 0:02:38]}  f5 {[%clk 0:02:19]} 15. Qb1 {[%clk 0:02:24]}  Qg5 {[%clk 0:02:01]} 16. Nf3 {[%clk 0:02:00]}  Bxf3 {[%clk 0:01:21]} 17. Bxf3 {[%clk 0:01:56]}  e4 {[%clk 0:01:21]} 18. dxe4 {[%clk 0:01:53]}  Nde5 {[%clk 0:01:21]} 19. b4 {[%clk 0:01:36]}  axb4 {[%clk 0:00:55]} 20. Nxb4 {[%clk 0:01:35]}  f4 {[%clk 0:00:49]} 21. Bg2 {[%clk 0:01:24]}  fxg3 {[%clk 0:00:49]} 22. hxg3 {[%clk 0:01:19]}  Rxf2 {[%clk 0:00:41]} 23. Nd3 {[%clk 0:01:01]}  Rf7 {[%clk 0:00:31]} 24. Nxe5 {[%clk 0:00:42]}  Nxe5 {[%clk 0:00:30]} 25. Qxb7 {[%clk 0:00:41]}  Raf8 {[%clk 0:00:29]} 26. Rf1 {[%clk 0:00:39]}  Qe3+ {[%clk 0:00:21]} 27. Kh1 {[%clk 0:00:38]}  Qh6+ {[%clk 0:00:19]} 28. Kg1 {[%clk 0:00:38]}  Ng4 {[%clk 0:00:19]} 29. Rxf7 {[%clk 0:00:27]}  Qh2+ {[%clk 0:00:18]} 30. Kf1 {[%clk 0:00:27]}  Rxf7+ {[%clk 0:00:19]} 31. Ke1 {[%clk 0:00:28]}  Qxg3+ {[%clk 0:00:18]} 32. Kd1 {[%clk 0:00:24]}  Qxg2 {[%clk 0:00:16]} 33. Qa8+ {[%clk 0:00:21]}  Rf8 {[%clk 0:00:16]} 34. Qd5+ {[%clk 0:00:22]}  Kh8 {[%clk 0:00:16]} 35. Qxd4 {[%clk 0:00:17]}  Qxe4 {[%clk 0:00:12]} 36. Qxe4 {[%clk 0:00:07]}  Nf2+ {[%clk 0:00:12]} 37. Kd2 {[%clk 0:00:08]}  Nxe4+ {[%clk 0:00:13]} 38. Ke3 {[%clk 0:00:09]}  Nc5 {[%clk 0:00:13]} 39. a4 {[%clk 0:00:09]}  Ra8 {[%clk 0:00:13]} 40. a5 {[%clk 0:00:09]}  Nb3 {[%clk 0:00:13]} 41. Ra3 {[%clk 0:00:09]}  Nxa5 {[%clk 0:00:13]} 42. Kf2 {[%clk 0:00:04]}  Kg8 {[%clk 0:00:13]} 43. c5 {[%clk 0:00:04]}  Rf8+ {[%clk 0:00:13]} 44. Ke1 {[%clk 0:00:03]}  Nc4 {[%clk 0:00:14]} 45. Ra7 {[%clk 0:00:03]}  c6 {[%clk 0:00:14]} 46. Rc7 {[%clk 0:00:02]}  Ne5 {[%clk 0:00:14]} 47. Re7 {[%clk 0:00:03]}  Rf5 {[%clk 0:00:14]} 48. e4 {[%clk 0:00:03]}  Rg5 {[%clk 0:00:14]} 49. Ke2 {[%clk 0:00:03]}  Kf8 {[%clk 0:00:14]} 50. Rc7 {[%clk 0:00:03]}  Rg3 {[%clk 0:00:13]} 51. Kf2 {[%clk 0:00:03]}  Rc3 {[%clk 0:00:12]} 0-1


[Site "https://www.chess.com"]